fUSD/lending_fUSD_20260321
["ID","MTS","AMOUNT","RATE_DAILY","PERIOD"]
[408685795,1774117840060,-50109.61685451,0.00016,2]
[408685796,1774117840107,-348.885,0.00016,2]
[408685797,1774117840119,-640.81,0.00016,2]
[408685802,1774117843142,-177.1173846,0.00015889,5]
[408685803,1774117843153,-681.76212011,0.00015929,2]
[408685804,1774117843166,-665.68087989,0.00015929,2]
[408685805,1774117843177,-2493.72942008,0.00016,2]
[408685812,1774117845558,-4997.511659,0.00016,2]
[408685813,1774117845871,-310.25882034,0.00016,2]
[408685814,1774117845882,-3145.76343513,0.00016,2]
[408685822,1774117863801,3684.0,0.000103,5]
[408685824,1774117893169,1478.814,0.00012382,2]
[408685825,1774117896142,-753.88694087,0.00012536,2]
[408685826,1774117896173,-3308.01465959,0.00012536,2]
[408685827,1774117911223,-300.0,0.00012634,2]
[408685830,1774117921186,300.0,0.00012634,2]
[408685832,1774117926640,-173.0,0.00012634,3]
[408685833,1774117926673,-250.0,0.00012634,2]
[408685834,1774117940465,976.16271611,0.00012536,2]
[408685836,1774117981484,300.0,0.00012634,2]
[408685837,1774117981944,150.0,0.00012634,2]
[408685838,1774117985809,500.0,0.00012634,2]
[408685839,1774117985938,461.5561879,0.00012634,2]
[408685840,1774117985967,500.0,0.00012634,2]
[408685841,1774117986288,500.0,0.00012634,2]
[408685842,1774117986318,500.0,0.00012634,2]
[408685843,1774117986578,500.0,0.00012634,2]
[408685844,1774117987272,173.0,0.00012635,2]
[408685845,1774117999904,500.0,0.00012634,2]
[408685846,1774117999937,500.0,0.00012634,2]
[408685847,1774117999965,500.0,0.00012634,2]
[408685848,1774117999994,500.0,0.00012634,2]
[408685849,1774118000022,500.0,0.00012634,2]
[408685850,1774118000059,500.0,0.00012634,2]
[408685851,1774118000090,500.0,0.00012634,2]
[408685852,1774118000121,500.0,0.00012634,2]
[408685853,1774118000156,500.0,0.00012634,2]
[408685854,1774118000185,500.0,0.00012634,2]
[408685855,1774118000217,500.0,0.00012634,2]
[408685856,1774118000251,500.0,0.00012634,2]
[408685857,1774118000280,415.4538121,0.00012634,2]
[408685858,1774118000303,84.5461879,0.00012634,2]
[408685859,1774118000338,500.0,0.00012634,2]
[408685860,1774118000366,500.0,0.00012634,2]
[408685861,1774118000394,500.0,0.00012634,2]
[408685862,1774118000430,500.0,0.00012634,2]
[408685863,1774118000459,500.0,0.00012634,2]
[408685864,1774118000491,500.0,0.00012634,2]
[408685865,1774118000520,500.0,0.00012634,2]
[408685866,1774118000551,500.0,0.00012634,2]
[408685867,1774118000579,500.0,0.00012634,2]
[408685868,1774118000607,500.0,0.00012634,2]
[408685869,1774118000646,500.0,0.00012634,2]
[408685870,1774118000682,500.0,0.00012634,2]
[408685871,1774118000718,500.0,0.00012634,2]
[408685872,1774118000745,500.0,0.00012634,2]
[408685873,1774118000792,500.0,0.00012634,2]
[408685874,1774118000826,500.0,0.00012634,2]
[408685875,1774118000856,500.0,0.00012634,2]
[408685876,1774118000885,500.0,0.00012634,2]
[408685877,1774118000915,500.0,0.00012634,2]
[408685878,1774118000949,415.4638121,0.00012634,2]
[408685879,1774118000973,84.5361879,0.00012634,2]
[408685880,1774118001018,500.0,0.00012634,2]
[408685881,1774118001144,500.0,0.00012634,2]
[408685882,1774118001179,500.0,0.00012634,2]
[408685883,1774118001216,500.0,0.00012634,2]
[408685884,1774118001301,500.0,0.00012634,2]
[408685885,1774118001337,500.0,0.00012634,2]
[408685886,1774118001448,500.0,0.00012634,2]
[408685887,1774118001519,500.0,0.00012634,2]
[408685888,1774118001559,500.0,0.00012634,2]
[408685889,1774118004164,520.66,6.952e-05,2]
[408685890,1774118004367,520.66,7.318e-05,2]
[408685891,1774118004701,520.66,7.684e-05,2]
[408685892,1774118007167,520.66,8.05e-05,2]
[408685893,1774118009767,520.66,8.416e-05,2]
[408685894,1774118009961,520.66,8.781e-05,2]
[408685895,1774118010331,520.66,9.147e-05,2]
[408685896,1774118010721,520.66,9.513e-05,2]
[408685897,1774118010922,520.66,9.879e-05,2]
[408685898,1774118011111,520.66,0.00010245,2]
[408685899,1774118011302,208.8738121,0.00010611,2]
[408685900,1774118011324,311.7861879,0.00010611,2]
[408685901,1774118011490,520.66,0.00010977,2]
[408685902,1774118011676,520.66,0.00011343,2]
[408685903,1774118011862,520.66,0.00011709,2]
[408685904,1774118012055,520.66,0.00012074,2]
[408685905,1774118012276,520.66,0.0001244,2]
[408685907,1774118020580,500.0,0.00012634,2]
[408685908,1774118020611,500.0,0.00012634,2]
[408685909,1774118020643,500.0,0.00012634,2]
[408685910,1774118020672,500.0,0.00012634,2]
[408685911,1774118020703,500.0,0.00012634,2]
[408685912,1774118020731,500.0,0.00012634,2]
[408685913,1774118020759,500.0,0.00012634,2]
[408685914,1774118020787,500.0,0.00012634,2]
[408685915,1774118020816,500.0,0.00012634,2]
[408685916,1774118020849,500.0,0.00012634,2]
[408685917,1774118020882,500.0,0.00012634,2]
[408685918,1774118020916,500.0,0.00012634,2]
[408685919,1774118020945,500.0,0.00012634,2]
[408685920,1774118020974,500.0,0.00012634,2]
[408685921,1774118021005,84.9238121,0.00012634,2]
[408685922,1774118021031,415.0761879,0.00012634,2]
[408685923,1774118021065,500.0,0.00012634,2]
[408685924,1774118021094,500.0,0.00012634,2]
[408685925,1774118021123,500.0,0.00012634,2]
[408685926,1774118021152,500.0,0.00012634,2]
[408685927,1774118021182,500.0,0.00012634,2]
[408685928,1774118021217,500.0,0.00012634,2]
[408685929,1774118021245,500.0,0.00012634,2]
[408685930,1774118021281,500.0,0.00012634,2]
[408685931,1774118021310,500.0,0.00012634,2]
[408685932,1774118041490,300.0,0.00012634,2]
[408685934,1774118056946,369.1929,0.00012634,2]
[408685935,1774118063400,4415.7409121,0.00012535,2]
[408685936,1774118063423,2530.73320341,0.00012535,2]
[408685937,1774118066161,7095.03160234,0.00012625,2]
[408685938,1774118081239,158.98194489,0.00012634,2]
[408685939,1774118084825,215.26324936,0.00011507,2]
[408685940,1774118084849,1277.61675064,0.00011507,2]
[408685941,1774118086993,193.76250543,0.00012634,2]
[408685942,1774118090898,500.0,0.00012634,2]
[408685943,1774118090948,512.58459587,0.00012634,2]
[408685944,1774118101064,300.0,0.00012634,2]
[408685945,1774118101131,1200.0,0.00012634,2]
[408685946,1774118102406,500.0,0.00012634,2]
[408685947,1774118102465,468.30120589,0.00012634,2]
[408685949,1774118106970,173.0,0.00012635,2]
[408685950,1774118109872,500.0,0.00012634,2]
[408685951,1774118109901,633.55516626,0.00012634,2]
[408685952,1774118109934,500.0,0.00012634,2]
[408685953,1774118109972,500.0,0.00012634,2]
[408685954,1774118110036,500.0,0.00012634,2]
[408685955,1774118110078,500.0,0.00012634,2]
[408685956,1774118110146,500.0,0.00012634,2]
[408685957,1774118110200,500.0,0.00012634,2]
[408685958,1774118111456,500.0,0.00012634,2]
[408685959,1774118111527,241.18977591,0.00012634,2]
[408685960,1774118111550,258.81022409,0.00012634,2]
[408685961,1774118111581,197.36658827,0.00012634,2]
[408685962,1774118129314,366.12709315,0.00012634,2]
[408685963,1774118139104,-7583.2180765,0.00012635,2]
[408685964,1774118139136,-2372.36451701,0.00012635,2]
[408685965,1774118139176,-722.8955016,0.00012635,2]
[408685967,1774118162193,150.0,0.00012634,2]
[408685969,1774118201261,166.66,0.0001217,2]
[408685970,1774118201458,166.66,0.00012426,2]
[408685972,1774118221173,300.0,0.00012634,2]
[408685973,1774118236680,151.0,0.00012635,2]
[408685974,1774118237315,283.62166643,0.00012635,2]
[408685976,1774118255888,1761.14657887,0.00012535,2]
[408685978,1774118309839,6198.61784919,0.00012535,2]
[408685979,1774118309861,7738.11811919,0.00012535,2]
[408685981,1774118334856,183.81,0.00012492,2]
[408685982,1774118341155,300.0,0.00012634,2]
[408685983,1774118342026,150.0,0.00012634,2]
[408685985,1774118401187,1200.0,0.00012634,2]
[408685987,1774118411570,428.08188081,0.00012625,2]
[408685988,1774118411597,644.32545239,0.00012625,2]
[408685989,1774118416285,-729330.18320489,0.00012635,2]
[408685990,1774118416307,-528223.8742,0.00012635,2]
[408685991,1774118416328,-3262.7566,0.00012635,2]
[408685992,1774118416349,-34014.6107,0.00012635,2]
[408685993,1774118416372,-4334.8442,0.00012635,2]
[408685994,1774118416395,-2000.0,0.00012635,2]
[408685995,1774118416421,-254.0,0.00012635,2]
[408685996,1774118416441,-200.0,0.00012635,2]
[408685997,1774118416462,-541.28,0.00012646,2]
[408685998,1774118416483,-250.0,0.00012659,2]
[408685999,1774118416506,-166.66,0.00012683,2]
[408686000,1774118416531,-500.0,0.00012734,2]
[408686001,1774118416554,-500.0,0.00012734,2]
[408686002,1774118416579,-500.0,0.00012734,2]
[408686003,1774118416604,-500.0,0.00012735,2]
[408686004,1774118416626,-200.60653321,0.00012735,2]
[408686005,1774118416647,-200.0,0.00012761,2]
[408686006,1774118416670,-150.0,0.00012768,2]
[408686007,1774118416692,-520.66,0.00012806,2]
[408686008,1774118416714,-200.0,0.00012889,2]
[408686009,1774118416735,-13936.73596836,0.00012909,2]
[408686010,1774118416758,-166.66,0.00012939,2]
[408686011,1774118440851,2500.0,0.00012535,2]
[408686013,1774118448557,223.37,0.00012864,3]
[408686015,1774118500068,7276.64,0.00012535,2]
[408686016,1774118500094,10000.01,0.00012535,2]
[408686017,1774118500117,10000.01,0.00012535,2]
[408686018,1774118500140,10000.01,0.00012535,2]
[408686019,1774118500162,10000.01,0.00012535,2]
[408686020,1774118500183,10000.01,0.00012535,2]
[408686021,1774118500205,10000.01,0.00012535,2]
[408686022,1774118500231,10000.01,0.00012535,2]
[408686023,1774118500253,10000.01,0.00012535,2]
[408686024,1774118500276,10000.01,0.00012535,2]
[408686026,1774118521753,300.0,0.00012534,2]
[408686027,1774118522038,150.0,0.00012534,2]
[408686028,1774118529695,293.0,0.00012534,2]
[408686030,1774118562873,151.125,0.00010499,2]
[408686033,1774118620855,154.0,6.446e-05,2]
[408686035,1774118663244,500.0,0.00012534,2]
[408686036,1774118663272,500.0,0.00012534,2]
[408686037,1774118663300,500.0,0.00012534,2]
[408686038,1774118663331,469.59935998,0.00012534,2]
[408686039,1774118663360,500.0,0.00012534,2]
[408686040,1774118663396,421.58681856,0.00012534,2]
[408686041,1774118663425,500.0,0.00012534,2]
[408686042,1774118663617,500.0,0.00012534,2]
[408686043,1774118663653,500.0,0.00012534,2]
[408686044,1774118663682,500.0,0.00012534,2]
[408686045,1774118663714,500.0,0.00012534,2]
[408686046,1774118663746,500.0,0.00012534,2]
[408686047,1774118663775,500.0,0.00012534,2]
[408686048,1774118679439,249.08910702,0.00012453,2]
[408686050,1774118701159,1200.0,0.00012534,2]
[408686051,1774118702323,150.0,0.00012534,2]
[408686052,1774118725198,961.60971444,0.00012435,2]
[408686053,1774118725221,10000.01,0.00012435,2]
[408686054,1774118725242,2262.80228088,0.00012435,2]
[408686056,1774118735307,216.37688297,0.00012435,2]
[408686057,1774118756403,2648.5287,0.00012435,2]
[408686060,1774118809136,-430.18705875,0.00012535,2]
[408686061,1774118821142,300.0,0.00012534,2]
[408686063,1774118826358,1790.62154922,0.00012435,2]
[408686064,1774118832637,500.0,0.00012535,2]
[408686065,1774118833250,500.0,0.00012535,2]
[408686066,1774118833985,500.0,0.00012535,2]
[408686067,1774118834463,500.0,0.00012535,2]
[408686068,1774118835217,500.0,0.00012535,2]
[408686069,1774118835807,281.68058693,0.00012535,2]
[408686070,1774118835829,218.31941307,0.00012535,2]
[408686071,1774118836410,500.0,0.00012535,2]
[408686072,1774118837007,334.28010119,0.00012535,2]
[408686073,1774118837325,200.0,0.00012535,2]
[408686074,1774118837549,151.0,0.00012535,2]
[408686075,1774118838142,151.0,0.00012535,2]
[408686076,1774118838754,151.0,0.00012535,2]
[408686077,1774118839370,151.0,0.00012535,2]
[408686078,1774118839881,151.0,0.00012535,2]
[408686079,1774118839952,151.0,0.00012535,2]
[408686080,1774118840494,151.0,0.00012535,2]
[408686081,1774118840537,151.0,0.00012535,2]
[408686082,1774118840831,7539.41048574,0.00012435,2]
[408686083,1774118840854,4310.51134112,0.00012435,2]
[408686084,1774118841579,265.39870975,0.00012535,2]
[408686085,1774118843080,-889.0962169,0.00012535,2]
[408686086,1774118848089,-1471.11343182,0.00012535,2]
[408686087,1774118853120,-678.17734146,0.00012535,2]
[408686089,1774118881176,300.0,0.00012534,2]
[408686090,1774118882087,150.0,0.00012534,2]
[408686091,1774118886206,500.0,0.00012534,2]
[408686092,1774118886266,500.0,0.00012534,2]
[408686093,1774118886363,500.0,0.00012534,2]
[408686094,1774118886565,500.0,0.00012534,2]
[408686095,1774118886631,500.0,0.00012534,2]
[408686096,1774118886766,500.0,0.00012534,2]
[408686097,1774118887060,500.0,0.00012534,2]
[408686098,1774118887183,500.0,0.00012534,2]
[408686099,1774118904016,500.0,0.00012534,2]
[408686100,1774118904129,474.09994913,0.00012534,2]
[408686101,1774118904164,118.42400691,0.00012534,2]
[408686102,1774118904380,500.0,0.00012534,2]
[408686103,1774118904433,500.0,0.00012534,2]
[408686104,1774118906965,242.51539043,0.00012534,2]
[408686105,1774118915664,500.0,0.00012534,2]
[408686106,1774118915773,500.0,0.00012534,2]
[408686107,1774118915826,500.0,0.00012534,2]
[408686108,1774118915938,399.99624478,0.00012534,2]
[408686109,1774118916146,500.0,0.00012534,2]
[408686110,1774118916223,500.0,0.00012534,2]
[408686111,1774118919463,169.7607733,0.00012534,2]
[408686113,1774118924393,3346.47,0.00012468,2]
[408686114,1774118950667,2222.84358458,0.00012452,2]
[408686115,1774118950689,4548.72641542,0.00012452,2]
[408686116,1774118955099,-42433.81437746,0.00012535,2]
[408686118,1774119001150,1200.0,0.00012534,2]
[408686120,1774119008956,4251.28358458,0.00012452,2]
[408686121,1774119008977,3585.75641542,0.00012452,2]
[408686122,1774119015555,714.93822213,0.00012525,2]
[408686124,1774119031769,-2975.86872731,0.00012535,2]
[408686125,1774119031821,-304.18861862,0.00012535,2]
[408686126,1774119031835,-2369.22227224,0.00012535,2]
[408686127,1774119031845,-626.10704283,0.00012535,2]
[408686128,1774119032058,-132640.24151433,0.00012535,2]
[408686129,1774119032070,-300.0,0.00012535,2]
[408686130,1774119032083,-311600.17897661,0.00012535,2]
[408686133,1774119032098,-202561.48239445,0.00012535,2]
[408686135,1774119032109,-18919.82212722,0.00012535,2]
[408686137,1774119032119,-500.0,0.00012535,2]
[408686139,1774119032128,-231015.10927085,0.00012535,2]
[408686141,1774119032139,-269425.3688037,0.00012535,2]
[408686200,1774119037982,-308.5174995,0.00012535,2]
[408686202,1774119038141,-514827.25162595,0.00012535,2]
[408686203,1774119038150,-253.0,0.00012535,2]
[408686204,1774119038160,-259.56250396,0.00012553,2]
[408686205,1774119038170,-495.483711,0.00012653,2]
[408686206,1774119038179,-8684.74090055,0.00012653,2]
[408686207,1774119038189,-2062.46310781,0.00012653,2]
[408686208,1774119038198,-243.72938729,0.00012653,2]
[408686209,1774119038208,-150.0,0.00012726,2]
[408686210,1774119038218,-1000.0,0.00012734,2]
[408686211,1774119038228,-13224.4219953,0.0001282,2]
[408686212,1774119038239,-11849.92182685,0.0001282,2]
[408686213,1774119038249,-200.0,0.00013018,2]
[408686215,1774119038259,-200.0,0.00013083,2]
[408686216,1774119038269,-259.56250393,0.00013111,2]
[408686217,1774119038278,-205.44916266,0.00013135,2]
[408686218,1774119038287,-520.66,0.00013172,2]
[408686219,1774119038297,-150.99,0.00013184,2]
[408686220,1774119038307,-1189.17,0.00013184,2]
[408686221,1774119038320,-9456.43,0.00013184,2]
[408686222,1774119038329,-299.99,0.00013184,2]
[408686223,1774119038339,-2114.07,0.00013184,2]
[408686224,1774119038348,-3202.89,0.00013184,2]
[408686225,1774119038358,-1568.67,0.00013184,2]
[408686226,1774119038367,-9999.99,0.00013184,2]
[408686227,1774119038377,-999.99,0.00013184,2]
[408686228,1774119038386,-73903.42,0.00013184,2]
[408686229,1774119038396,-150.99,0.00013184,2]
[408686230,1774119038405,-9999.99,0.00013184,2]
[408686231,1774119038414,-517.34,0.00013184,2]
[408686232,1774119038423,-44623.8,0.00013184,2]
[408686233,1774119038433,-1547.4,0.00013184,2]
[408686234,1774119038442,-333.17,0.00013184,2]
[408686235,1774119038451,-8449.63,0.00013184,2]
[408686236,1774119038460,-9999.99,0.00013184,2]
[408686237,1774119038470,-9999.99,0.00013184,2]
[408686238,1774119038479,-23270.6,0.00013184,2]
[408686239,1774119038489,-312.59,0.00013184,2]
[408686240,1774119038498,-183.81,0.00013186,2]
[408686241,1774119038508,-166.66,0.00013195,2]
[408686242,1774119038517,-13224.4219953,0.00013205,2]
[408686243,1774119038526,-11849.92182685,0.00013205,2]
[408686244,1774119038535,-343.5,0.00013284,2]
[408686245,1774119038545,-4453.0,0.00013342,2]
[408686246,1774119038554,-6256.5024027,0.00013364,2]
[408686247,1774119038565,-82043.3336135,0.00013364,2]
[408686248,1774119038576,-3240.0,0.00013425,2]
[408686249,1774119038586,-4157.28465485,0.00013435,2]
[408686250,1774119038596,-500.0,0.00013451,2]
[408686251,1774119038605,-166.66,0.00013451,2]
[408686252,1774119038614,-520.66,0.00013538,2]
[408686253,1774119038625,-343.5,0.00013558,2]
[408686254,1774119038635,-13224.4219953,0.0001359,2]
[408686255,1774119038646,-11849.92182685,0.0001359,2]
[408686256,1774119038656,-255.0,0.00013624,2]
[408686257,1774119038666,-200.0,0.00013631,2]
[408686258,1774119038675,-259.56250393,0.00013669,2]
[408686259,1774119038685,-500.0,0.00013698,2]
[408686260,1774119038698,-500.0,0.00013698,2]
[408686261,1774119038707,-503.01706708,0.00013698,2]
[408686262,1774119038717,-153.0,0.00013699,2]
[408686263,1774119038727,-153.0,0.00013699,2]
[408686264,1774119038736,-237.93814367,0.00013699,2]
[408686265,1774119038745,-228.8,0.000137,2]
[408686266,1774119038759,-794.32,0.000137,2]
[408686267,1774119038770,-564.59,0.000137,2]
[408686268,1774119038780,-907.13,0.000137,2]
[408686269,1774119038789,-500.0,0.00013725,2]
[408686270,1774119038800,-1680.0,0.00013787,2]
[408686271,1774119038810,-250.0,0.00013788,2]
[408686272,1774119038819,-250.0,0.00013788,2]
[408686273,1774119038829,-343.5,0.00013832,2]
[408686274,1774119038838,-500.0,0.00013878,2]
[408686275,1774119038848,-500.0,0.00013878,2]
[408686276,1774119038857,-500.0,0.00013878,2]
[408686277,1774119038877,-500.0,0.00013878,2]
[408686278,1774119038893,-500.0,0.00013878,2]
[408686279,1774119038903,-500.0,0.00013878,2]
[408686280,1774119038912,-500.0,0.00013878,2]
[408686281,1774119038921,-500.0,0.00013878,2]
[408686282,1774119038930,-500.0,0.00013878,2]
[408686283,1774119038940,-500.0,0.00013878,2]
[408686284,1774119038949,-500.0,0.00013878,2]
[408686285,1774119038958,-500.0,0.00013878,2]
[408686286,1774119038968,-183.81,0.0001388,2]
[408686287,1774119038978,-520.66,0.00013904,2]
[408686288,1774119038987,-13224.4219953,0.00013975,2]
[408686289,1774119038996,-11849.92182685,0.00013975,2]
[408686290,1774119039006,-507.0,0.00014,2]
[408686291,1774119039016,-801.82,0.00014052,2]
[408686292,1774119039026,-343.5,0.00014105,2]
[408686293,1774119039036,-259.56250393,0.00014227,2]
[408686294,1774119039045,-281.47,0.00014267,2]
[408686295,1774119039055,-13224.4219953,0.0001436,2]
[408686296,1774119039064,-11849.92182685,0.0001436,2]
[408686297,1774119039073,-343.54,0.00014379,2]
[408686298,1774119039083,-1000.0,0.00014415,2]
[408686299,1774119039092,-183.81,0.00014574,2]
[408686300,1774119039101,-1568.0,0.0001472,2]
[408686301,1774119039114,-13224.4219953,0.00014745,2]
[408686302,1774119039124,-11849.92182685,0.00014745,2]
[408686303,1774119039133,-259.56250393,0.00014784,2]
[408686304,1774119039142,-433.0,0.00014815,2]
[408686305,1774119039151,-436.18,0.0001499,2]
[408686306,1774119039161,-436.19,0.00015065,2]
[408686307,1774119039170,-18306.3421683,0.00015065,2]
[408686308,1774119039179,-768.47,0.00015068,2]
[408686309,1774119039189,-1396.0143831,0.0001508,2]
[408686310,1774119039198,-453.7433437,0.00015104,2]
[408686311,1774119039207,-13224.4219953,0.0001513,2]
[408686312,1774119039405,-11849.92182685,0.0001513,2]
[408686313,1774119039416,-2351.0,0.00015166,2]
[408686314,1774119039425,-979.16666667,0.00015185,2]
[408686315,1774119039439,-160.0,0.00015185,2]
[408686316,1774119039448,-1183.051,0.00015226,2]
[408686317,1774119039457,-183.81,0.00015268,2]
[408686318,1774119039467,-607.0,0.00015317,2]
[408686319,1774119039476,-259.56250393,0.00015342,2]
[408686320,1774119039486,-2403.0,0.0001536,2]
[408686321,1774119039495,-4084.6970597,0.00015445,2]
[408686322,1774119039504,-311.4929128,0.00015462,2]
[408686323,1774119039514,-2539.93,0.00015507,2]
[408686324,1774119039523,-13224.4219953,0.00015515,2]
[408686325,1774119039534,-11849.92182685,0.00015515,2]
[408686326,1774119039543,-607.0,0.00015517,2]
[408686327,1774119039553,-350.0,0.00015574,3]
[408686328,1774119039561,-700.0,0.00015592,2]
[408686329,1774119039570,-168.0,0.00015667,2]
[408686330,1774119039580,-2403.0,0.0001568,2]
[408686331,1774119039588,-160.0,0.0001568,7]
[408686332,1774119039597,-426.944669,0.0001568,7]
[408686333,1774119039607,-160.0,0.0001568,7]
[408686334,1774119039616,-160.0,0.0001568,7]
[408686335,1774119039625,-367.850025,0.0001568,7]
[408686336,1774119039634,-166.069269,0.0001568,7]
[408686337,1774119039643,-160.0,0.0001568,7]
[408686338,1774119039652,-168.0,0.00015765,2]
[408686339,1774119039663,-907.13,0.000158,2]
[408686340,1774119039673,-168.0,0.00015803,2]
[408686341,1774119039682,-28037.43911886,0.0001584,2]
[408686342,1774119039691,-500.0,0.00015872,2]
[408686343,1774119039700,-2539.93,0.00015895,2]
[408686344,1774119039709,-564.59,0.000159,2]
[408686345,1774119039718,-13224.4219953,0.000159,2]
[408686346,1774119039727,-1790.62154917,0.000159,2]
[408686347,1774119039737,-11849.92182685,0.000159,2]
[408686348,1774119039746,-259.56250393,0.000159,2]
[408686349,1774119039755,-366.4469759,0.000159,2]
[408686350,1774119039768,-631.4293198,0.000159,2]
[408686351,1774119039778,-2525.89218,0.000159,2]
[408686352,1774119039788,-214.12244339,0.000159,2]
[408686353,1774119039797,-3988.66058895,0.000159,2]
[408686354,1774119039811,-1094.0,0.000159,5]
[408686355,1774119039824,-876.0,0.000159,5]
[408686356,1774119039836,-252.73554,0.00015957,7]
[408686357,1774119039845,-183.81,0.00015962,2]
[408686358,1774119039855,-1165.49964467,0.00015972,5]
[408686359,1774119039864,-6945.0,0.00015973,2]
[408686360,1774119039873,-500.0,0.00015973,2]
[408686361,1774119039882,-500.0,0.00015973,2]
[408686362,1774119039891,-210.30338749,0.00015973,2]
[408686363,1774119039900,-500.0,0.00015973,2]
[408686364,1774119039910,-500.0,0.00015973,2]
[408686365,1774119039921,-500.0,0.00015973,2]
[408686366,1774119039931,-500.0,0.00015973,2]
[408686367,1774119039942,-459.51301064,0.00015973,2]
[408686368,1774119039953,-714.93822213,0.0001599,2]
[408686369,1774119039961,-714.93822213,0.0001599,2]
[408686370,1774119039971,-151.0,0.00015997,2]
[408686371,1774119039980,-207969.15834943,0.00016,2]
[408686372,1774119040123,-1827.21868921,0.00016,2]
[408686373,1774119040134,-943.95867498,0.00016,2]
[408686374,1774119040145,-903.93718342,0.00016,2]
[408686375,1774119040156,-31714.45007758,0.00016,2]
[408686376,1774119040200,-892.18335078,0.00016,2]
[408686377,1774119040217,-266.93888844,0.00016,2]
[408686378,1774119040228,-502.76721983,0.00016,2]
[408686379,1774119040238,-1902.07,0.00016,2]
[408686380,1774119040249,-350.33533698,0.00016,2]
[408686381,1774119040261,-6633.13592568,0.00016,2]
[408686382,1774119040303,-2541.70125392,0.00016,2]
[408686383,1774119040410,-3600.0,0.00016,2]
[408686386,1774119042776,-786.0,0.00016,2]
[408686387,1774119042934,-3688.0930694,0.00016,2]
[408686388,1774119042946,-11723.64423464,0.00016,2]
[408686389,1774119042989,-55132.96174704,0.00016,2]
[408686398,1774119045770,-2330.01,0.0001592,2]
[408686399,1774119045780,-7478.66271906,0.00016,2]
[408686400,1774119045791,-6379.70000008,0.00016,2]
[408686401,1774119045803,-10913.01584229,0.00016,2]
[408686402,1774119045814,-22266.34368669,0.00016,2]
[408686403,1774119046084,-872.25527299,0.00016,2]
[408686404,1774119046095,-15928.91274274,0.00016,2]
[408686407,1774119048187,-382.94399198,0.00016,2]
[408686408,1774119048198,-300.15125318,0.00016,2]
[408686409,1774119048216,-350.0,0.00016,2]
[408686410,1774119048227,-999.0,0.00016,2]
[408686411,1774119048419,9410.86708982,0.00012653,2]
[408686412,1774119048447,589.14291018,0.00012653,2]
[408686413,1774119048468,1938.79783966,0.00012653,2]
[408686414,1774119050005,8061.21216034,0.00012435,2]
[408686415,1774119050040,10000.01,0.00012435,2]
[408686416,1774119050071,10000.01,0.00012435,2]
[408686417,1774119050094,10000.01,0.00012435,2]
[408686418,1774119050118,10000.01,0.00012435,2]
[408686419,1774119050143,10000.01,0.00012435,2]
[408686420,1774119050166,10000.01,0.00012435,2]
[408686421,1774119050188,9208.21503966,0.00012435,2]
[408686423,1774119067385,791.79496034,7.945e-05,2]